{"text_format":"1","workbook":"xlsx","n_sheets":8,"sheets":["Instrucciones","Organización (1S)","Orden (2S)","Limpieza (3S)","Estandarización (4S)","Disciplina (5S)","Cálculos","Resultados"],"not_rendered":{"charts":1,"images":1,"macros":1,"external_links":0,"defined_names":7,"comments":0,"pivot_tables":0},"unopened":[],"bounds":{"document_bytes":16777216,"sheet_cells":100000,"rows_first":2000,"rows_last":500,"rows_between":2000,"halvings":0,"cell_chars":16384,"cell_head_chars":4096},"cells_cut":0,"cells_raw":0,"read":"whole","date_system":"1900"}

{"sheet":"Instrucciones","index":0,"n_rows":0,"n_cols":0,"rows_kept":0,"cut":false,"hidden":false,"merged":[]}

{"sheet":"Organización (1S)","index":1,"n_rows":11,"n_cols":4,"rows_kept":11,"cut":false,"hidden":false,"merged":[[0,0,0,1]]}
["Evaluación de la Organización"]
["Ítem","Preguntas","SÍ","NO"]
[1,"¿Los objetos considerados necesarios para el desarrollo de las actividades del área se encuentran organizados?"]
[2,"¿Se observan objetos dañados?"]
[3,"En caso de observarse objetos dañados, ¿se han clasificado como útiles o inútiles?"]
[4,"¿Cuentan con un plan de acción para repararlos o se encuentran separados y rotulados?"]
[5,"¿Existen objetos obsoletos?"]
[6,"En caso de observarse objetos obsoletos, ¿están debidamente identificados y separados?"]
[7,"¿Cuentan con un plan de acción para descartar los objetos obsoletos?"]
[8,"¿Se encuentran en las áreas objetos que no son necesarios para realizar las actividades del área?"]
[9,"En caso de observarse objetos no necesarios, ¿están debidamente identificados y existe un plan de acción para transferirlos?"]

{"sheet":"Orden (2S)","index":2,"n_rows":8,"n_cols":4,"rows_kept":8,"cut":false,"hidden":false,"merged":[[0,0,0,3]]}
["Evaluación del Orden"]
["Ítem","Preguntas","SÍ","NO"]
[1,"¿Se utiliza la identificación visual, de forma tal que cualquier persona de la organización puede fácilmente encontrar o disponer de los objetos si los necesita?"]
[2,"¿Existen áreas identificadas para cada elemento que se ha considerado necesario?"]
[3,"¿Se dispone de áreas debidamente identificadas para objetos que se utilizan con poca frecuencia?"]
[4,"¿La disposición de los elementos es acorde al grado de utilización de los mismos?  Entre más frecuente, más cerca."]
[5,"¿Existen métodos para que cada elemento retorne a su lugar de almacenamiento?"]
[6,"¿Cuentan con herramientas como códigos de color, señalización y hojas de verificación, para asegurar el orden en las áreas?"]

{"sheet":"Limpieza (3S)","index":3,"n_rows":8,"n_cols":4,"rows_kept":8,"cut":false,"hidden":false,"merged":[[0,0,0,3]]}
["Evaluación de Limpieza"]
["Ítem","Preguntas","SÍ","NO"]
[1,"¿El área de trabajo se percibe como absolutamente limpia?"]
[2,"¿El personal del área se encuentra limpio de acuerdo con sus actividades?"]
[3,"¿Se han eliminado las fuentes de contaminación?"]
[4,"¿Existe una rutina de limpieza por parte del personal del área?"]
[5,"¿Existen espacios y elementos para disponer de la basura?"]
[6,"¿Existen implementos suficientes para realizar las operaciones de limpieza?"]

{"sheet":"Estandarización (4S)","index":4,"n_rows":8,"n_cols":4,"rows_kept":8,"cut":false,"hidden":false,"merged":[[0,0,0,3]]}
["Evaluación de Estandarización"]
["Ítem","Preguntas","SÍ","NO"]
[1,"¿Existen herramientas de estandarización para mantener la organización, el orden y la limpieza?"]
[2,"¿Se utiliza evidencia visual respecto al mantenimiento de las condiciones de organización, orden y limpieza?"]
[3,"¿Se utilizan moldes o plantillas para conservar el orden?"]
[4,"¿Se cuenta con un cronograma de análisis de utilidad, obsolescencia y estado de elementos?"]
[5,"¿En el período de evaluación, se han presentado propuestas de mejora en el área?"]
[6,"¿Se han desarrollado lecciones de un punto o procedimientos operativos estándar?"]

{"sheet":"Disciplina (5S)","index":5,"n_rows":6,"n_cols":4,"rows_kept":6,"cut":false,"hidden":false,"merged":[[0,0,0,3]]}
["Evaluación de Disciplina"]
["Ítem","Preguntas","SÍ","NO"]
[1,"¿Se percibe una cultura de respeto por los estándares establecidos y por los logros alcanzados en materia de organización, orden y limpieza?"]
[2,"¿Se percibe proactividad en el desarrollo de la metodología '5S'?"]
[3,"¿Se conocen situaciones dentro del período de la evaluación, no necesariamente al momento de diligenciar este formato, que afecten los principios de las '5S'?"]
[4,"¿Se encuentran visibles los resultados obtenidos por medio de la metodología?"]

{"sheet":"Cálculos","index":6,"n_rows":8,"n_cols":7,"rows_kept":8,"cut":false,"hidden":true,"merged":[]}
[]
[]
[null,null,"SI","No","% Cumplimiento","% No cumplimiento","Total"]
[null,"Organización",{"$f":"COUNTIF('Organización (1S)'!C3:C11,\"x\")","v":0},{"$f":"COUNTIF('Organización (1S)'!D3:D11,\"x\")","v":0},{"$f":"+C4*100/9","v":0},{"$f":"+D4*100/9","v":0},{"$f":"SUM(E4:F4)","v":0}]
[null,"Orden",{"$f":"COUNTIF('Orden (2S)'!C3:C8,\"X\")","v":0},{"$f":"COUNTIF('Orden (2S)'!D3:D8,\"X\")","v":0},{"$f":"+C5*100/6","v":0},0,{"$f":"SUM(E5:F5)","v":0}]
[null,"Limpieza",{"$f":"COUNTIF('Limpieza (3S)'!C3:C8,\"X\")","v":0},{"$f":"COUNTIF('Limpieza (3S)'!D3:D8,\"X\")","v":0},0,0,0]
[null,"Estandarización",{"$f":"COUNTIF('Estandarización (4S)'!C3:C8,\"X\")","v":0},{"$f":"COUNTIF('Estandarización (4S)'!D3:D8,\"X\")","v":0},0,0,0]
[null,"Disciplina",{"$f":"COUNTIF('Disciplina (5S)'!C3:C6,\"X\")","v":0},{"$f":"COUNTIF('Disciplina (5S)'!D3:D6,\"X\")","v":0},{"$f":"+C8*100/4","v":0},{"$f":"+D8*100/4","v":0},0]

{"sheet":"Resultados","index":7,"n_rows":38,"n_cols":3,"rows_kept":38,"cut":false,"hidden":false,"merged":[[32,0,32,1],[0,0,0,2]]}
["Resultados"]
[]
[]
[]
[]
[]
[]
[]
[]
[]
[]
[]
[]
[]
[]
[]
[]
[]
[]
[]
[]
[]
[]
[]
[]
[]
[]
[]
[]
[]
[]
[]
["Aspecto",null,"% de cumplimiento"]
["1 S","Organización",{"$f":"+Cálculos!C4*100/9","v":0}]
["2 S","Orden",{"$f":"+Cálculos!C5*16.6666666666667","v":0}]
["3 S","Limpieza",{"$f":"+Cálculos!C6*16.6666666666667","v":0}]
["4 S","Estandarización",{"$f":"+Cálculos!C7*16.6666666666667","v":0}]
["5 S","Disciplina",{"$f":"+Cálculos!C8*25","v":0}]